[Event "Betsys MČR v online bleskovém šachu 2021"]
[Site "Chess.com"]
[Date "2021.04.17"]
[Round "2"]
[White "kominekmart"]
[Black "NikolaKusova"]
[Result "1-0"]
[WhiteElo "1578"]
[BlackElo "777"]
[TimeControl "180+1"]
[EndTime "9:17:37 PDT"]
[Termination "Uživatel kominekmart zvítězil matem"]

1. e4 {[%clk 0:03:00.9]} 1... e5 {[%clk 0:02:59.1]} 2. Nf3 {[%clk 0:03:00.5]}
2... Nf6 {[%clk 0:02:58.2]} 3. Nxe5 {[%clk 0:02:55.4]} 3... d6 {[%clk
0:02:57.6]} 4. Nf3 {[%clk 0:02:54.9]} 4... Nxe4 {[%clk 0:02:56.6]} 5. Bc4 {[%clk
0:02:51.7]} 5... d5 {[%clk 0:02:39.3]} 6. Bb3 {[%clk 0:02:42.8]} 6... Bc5 {[%clk
0:02:24.3]} 7. O-O {[%clk 0:02:41.4]} 7... O-O {[%clk 0:02:14.7]} 8. d4 {[%clk
0:02:34.9]} 8... Bb6 {[%clk 0:02:08.7]} 9. h3 {[%clk 0:02:30]} 9... Bf5 {[%clk
0:01:55.8]} 10. Nbd2 {[%clk 0:01:52]} 10... Nxd2 {[%clk 0:01:51.3]} 11. Bxd2
{[%clk 0:01:48.4]} 11... c6 {[%clk 0:01:43.2]} 12. Re1 {[%clk 0:01:38.5]} 12...
Bc7 {[%clk 0:01:34.1]} 13. c3 {[%clk 0:01:36.3]} 13... Nd7 {[%clk 0:01:26.5]}
14. Bg5 {[%clk 0:01:29.6]} 14... Qc8 {[%clk 0:01:21.3]} 15. Bc2 {[%clk
0:01:15.4]} 15... Bxc2 {[%clk 0:01:18.2]} 16. Qxc2 {[%clk 0:01:14.9]} 16... f6
{[%clk 0:01:17.2]} 17. Bh4 {[%clk 0:01:11]} 17... Re8 {[%clk 0:01:11.1]} 18.
Rxe8+ {[%clk 0:01:02]} 18... Qxe8 {[%clk 0:01:09.6]} 19. Re1 {[%clk 0:01:01.6]}
19... Qf8 {[%clk 0:01:00.4]} 20. Qf5 {[%clk 0:01:00.4]} 20... Rd8 {[%clk
0:00:49.9]} 21. Qe6+ {[%clk 0:00:51.8]} 21... Kh8 {[%clk 0:00:43.7]} 22. Nh2
{[%clk 0:00:45.1]} 22... Nb6 {[%clk 0:00:35.9]} 23. Qe7 {[%clk 0:00:39.5]} 23...
Qg8 {[%clk 0:00:29.8]} 24. Qxc7 {[%clk 0:00:37.3]} 24... Re8 {[%clk 0:00:22.9]}
25. Rxe8 {[%clk 0:00:33.9]} 25... Qxe8 {[%clk 0:00:22.3]} 26. Qxb7 {[%clk
0:00:33.5]} 26... Qe1+ {[%clk 0:00:20.2]} 27. Nf1 {[%clk 0:00:33]} 27... Qe8
{[%clk 0:00:17.2]} 28. Qxa7 {[%clk 0:00:31.9]} 28... Nd7 {[%clk 0:00:16.6]} 29.
Bg3 {[%clk 0:00:29.5]} 29... Qf8 {[%clk 0:00:15.2]} 30. Qa3 {[%clk 0:00:27.2]}
30... Qxa3 {[%clk 0:00:13.7]} 31. bxa3 {[%clk 0:00:26.9]} 31... Nf8 {[%clk
0:00:12.8]} 32. a4 {[%clk 0:00:26.2]} 32... Kg8 {[%clk 0:00:12.2]} 33. a5 {[%clk
0:00:25.9]} 33... Kf7 {[%clk 0:00:11.7]} 34. a6 {[%clk 0:00:25.6]} 34... Ke8
{[%clk 0:00:11.6]} 35. a7 {[%clk 0:00:25.4]} 35... Nd7 {[%clk 0:00:10.8]} 36.
a8=Q+ {[%clk 0:00:24]} 36... Ke7 {[%clk 0:00:10.2]} 37. Ne3 {[%clk 0:00:21.3]}
37... Ke6 {[%clk 0:00:08.1]} 38. Qe8# {[%clk 0:00:18.6]} 1-0

[Event "Betsys MČR v online bleskovém šachu 2021"]
[Site "Chess.com"]
[Date "2021.04.17"]
[Round "2"]
[White "iDarkTraveler"]
[Black "Terilka"]
[Result "0-1"]
[WhiteElo "1967"]
[BlackElo "1504"]
[TimeControl "180+1"]
[EndTime "9:17:38 PDT"]
[Termination "Uživatel Terilka zvítězil na čas"]

1. d4 {[%clk 0:03:00]} 1... Nf6 {[%clk 0:02:59.3]} 2. Nf3 {[%clk 0:02:59.7]}
2... g6 {[%clk 0:02:59.7]} 3. Bg5 {[%clk 0:02:57.7]} 3... Bg7 {[%clk 0:02:58.9]}
4. e3 {[%clk 0:02:57.5]} 4... d5 {[%clk 0:02:58.5]} 5. Bd3 {[%clk 0:02:55.5]}
5... O-O {[%clk 0:02:57.9]} 6. O-O {[%clk 0:02:53.1]} 6... c5 {[%clk 0:02:57.9]}
7. c3 {[%clk 0:02:49.9]} 7... c4 {[%clk 0:02:50.2]} 8. Bc2 {[%clk 0:02:48]} 8...
Nc6 {[%clk 0:02:49.7]} 9. h3 {[%clk 0:02:45.6]} 9... b5 {[%clk 0:02:43.8]} 10.
a3 {[%clk 0:02:43.7]} 10... a5 {[%clk 0:02:43.5]} 11. Nbd2 {[%clk 0:02:43.3]}
11... Bd7 {[%clk 0:02:32.4]} 12. Bxf6 {[%clk 0:02:42.9]} 12... Bxf6 {[%clk
0:02:31.8]} 13. e4 {[%clk 0:02:43.5]} 13... e6 {[%clk 0:02:24.1]} 14. Re1 {[%clk
0:02:40.8]} 14... Qc7 {[%clk 0:02:11.5]} 15. e5 {[%clk 0:02:39]} 15... Bg7
{[%clk 0:02:11.3]} 16. Qe2 {[%clk 0:02:25.6]} 16... Qb6 {[%clk 0:01:48.4]} 17.
h4 {[%clk 0:01:58]} 17... h5 {[%clk 0:01:29.9]} 18. Ng5 {[%clk 0:01:54.2]} 18...
b4 {[%clk 0:01:25.6]} 19. axb4 {[%clk 0:01:51.7]} 19... axb4 {[%clk 0:01:24.3]}
20. g4 {[%clk 0:01:35.9]} 20... hxg4 {[%clk 0:00:47.7]} 21. Qxg4 {[%clk
0:01:34.1]} 21... bxc3 {[%clk 0:00:44.4]} 22. bxc3 {[%clk 0:01:28.4]} 22... Qb2
{[%clk 0:00:42.9]} 23. Rxa8 {[%clk 0:01:26.4]} 23... Rxa8 {[%clk 0:00:42.1]} 24.
Nxf7 {[%clk 0:00:40.1]} 24... Qxc2 {[%clk 0:00:34.6]} 25. Nf3 {[%clk 0:00:19.1]}
25... Kxf7 {[%clk 0:00:24.8]} 26. Ng5+ {[%clk 0:00:16.5]} 26... Ke7 {[%clk
0:00:24.1]} 27. h5 {[%clk 0:00:16.8]} 27... Qf5 {[%clk 0:00:20.3]} 28. Qh4
{[%clk 0:00:15.9]} 28... Ke8 {[%clk 0:00:18.7]} 29. h6 {[%clk 0:00:14.7]} 29...
Bh8 {[%clk 0:00:18.3]} 30. Re3 {[%clk 0:00:08.5]} 30... Ra2 {[%clk 0:00:17.8]}
31. Rf3 {[%clk 0:00:07.9]} 31... Qb1+ {[%clk 0:00:17.7]} 32. Kg2 {[%clk
0:00:08]} 32... Qc2 {[%clk 0:00:12.1]} 33. Nh7 {[%clk 0:00:07.3]} 33... Qe4
{[%clk 0:00:08.1]} 0-1

[Event "Betsys MČR v online bleskovém šachu 2021"]
[Site "Chess.com"]
[Date "2021.04.17"]
[Round "2"]
[White "Daffac"]
[Black "Paulz64"]
[Result "1-0"]
[WhiteElo "2089"]
[BlackElo "2499"]
[TimeControl "180+1"]
[EndTime "9:17:39 PDT"]
[Termination "Uživatel Daffac zvítězil na čas"]

1. d4 {[%clk 0:03:00.1]} 1... Nf6 {[%clk 0:02:59.2]} 2. Nf3 {[%clk 0:02:58.8]}
2... e6 {[%clk 0:02:59.2]} 3. Bf4 {[%clk 0:02:57.6]} 3... b6 {[%clk 0:02:58.3]}
4. e3 {[%clk 0:02:57.4]} 4... Bb7 {[%clk 0:02:58.3]} 5. Nbd2 {[%clk 0:02:56.7]}
5... Be7 {[%clk 0:02:58.4]} 6. Bd3 {[%clk 0:02:56.6]} 6... Nh5 {[%clk
0:02:53.8]} 7. Be5 {[%clk 0:02:44.3]} 7... d6 {[%clk 0:02:50.6]} 8. Bg3 {[%clk
0:02:43.6]} 8... Nd7 {[%clk 0:02:45.1]} 9. Qe2 {[%clk 0:02:40.7]} 9... Nxg3
{[%clk 0:02:30.3]} 10. hxg3 {[%clk 0:02:40.2]} 10... Bf6 {[%clk 0:02:30.7]} 11.
O-O-O {[%clk 0:02:31.9]} 11... e5 {[%clk 0:02:22.2]} 12. Ne4 {[%clk 0:02:12.5]}
12... Qe7 {[%clk 0:02:17.4]} 13. Kb1 {[%clk 0:01:57]} 13... O-O-O {[%clk
0:02:08.8]} 14. Nxf6 {[%clk 0:01:55.2]} 14... Nxf6 {[%clk 0:02:06.9]} 15. Ba6
{[%clk 0:01:56.1]} 15... h6 {[%clk 0:01:53.5]} 16. Qb5 {[%clk 0:01:44.9]} 16...
e4 {[%clk 0:01:19.8]} 17. Nd2 {[%clk 0:01:30.4]} 17... Qd7 {[%clk 0:01:02.4]}
18. Bxb7+ {[%clk 0:01:17.9]} 18... Kxb7 {[%clk 0:01:00.5]} 19. Qb4 {[%clk
0:01:18.8]} 19... d5 {[%clk 0:00:35.6]} 20. Nb3 {[%clk 0:01:16.3]} 20... Ka8
{[%clk 0:00:32.3]} 21. c4 {[%clk 0:01:15.7]} 21... c6 {[%clk 0:00:20.9]} 22. c5
{[%clk 0:01:10]} 22... b5 {[%clk 0:00:18]} 23. a4 {[%clk 0:01:10.3]} 23... Rb8
{[%clk 0:00:16.8]} 24. Kc2 {[%clk 0:01:07.6]} 24... Ng4 {[%clk 0:00:08.3]} 25.
Rd2 {[%clk 0:00:58.9]} 25... bxa4 {[%clk 0:00:08.3]} 26. Qxa4 {[%clk 0:00:59.2]}
26... Rb5 {[%clk 0:00:08.5]} 27. Ra1 {[%clk 0:00:56.1]} 27... Rhb8 {[%clk
0:00:08.1]} 28. Ra3 {[%clk 0:00:55.6]} 28... Qc7 {[%clk 0:00:07]} 29. Qa6 {[%clk
0:00:49.9]} 29... Nf6 {[%clk 0:00:03.3]} 30. Rd1 {[%clk 0:00:48.5]} 30... Qb7
{[%clk 0:00:02.9]} 31. Qxb7+ {[%clk 0:00:42.2]} 31... R8xb7 {[%clk 0:00:03.1]}
32. Rda1 {[%clk 0:00:43.1]} 32... Kb8 {[%clk 0:00:02.5]} 33. R1a2 {[%clk
0:00:38.7]} 33... Ng4 {[%clk 0:00:02.5]} 34. Na5 {[%clk 0:00:37.8]} 34... Rc7
{[%clk 0:00:02.6]} 35. Nb3 {[%clk 0:00:20.4]} 35... Nxf2 {[%clk 0:00:02]} 36.
Ra6 {[%clk 0:00:20.4]} 36... Ng4 {[%clk 0:00:01.9]} 37. R2a5 {[%clk 0:00:15.9]}
1-0

[Event "Betsys MČR v online bleskovém šachu 2021"]
[Site "Chess.com"]
[Date "2021.04.17"]
[Round "2"]
[White "Zavurka1975"]
[Black "KatkaZ"]
[Result "1-0"]
[WhiteElo "2212"]
[BlackElo "1873"]
[TimeControl "180+1"]
[EndTime "9:17:39 PDT"]
[Termination "Uživatel Zavurka1975 zvítězil po vzdání soupeře"]

1. d4 {[%clk 0:03:00.9]} 1... Nf6 {[%clk 0:02:59.5]} 2. Nf3 {[%clk 0:03:00.9]}
2... g6 {[%clk 0:02:59.9]} 3. Bf4 {[%clk 0:02:59]} 3... Bg7 {[%clk 0:03:00.2]}
4. e3 {[%clk 0:02:59]} 4... d6 {[%clk 0:03:00.3]} 5. h3 {[%clk 0:02:59]} 5...
Nbd7 {[%clk 0:03:00.3]} 6. Be2 {[%clk 0:02:59]} 6... h6 {[%clk 0:03:00.4]} 7.
O-O {[%clk 0:02:58.7]} 7... O-O {[%clk 0:02:59.8]} 8. c3 {[%clk 0:02:58.4]} 8...
c6 {[%clk 0:03:00.2]} 9. a4 {[%clk 0:02:57.9]} 9... Re8 {[%clk 0:02:59]} 10. Na3
{[%clk 0:02:56.9]} 10... a6 {[%clk 0:02:57]} 11. Nc4 {[%clk 0:02:46.9]} 11... b5
{[%clk 0:02:51.8]} 12. axb5 {[%clk 0:02:45.2]} 12... cxb5 {[%clk 0:02:49.9]} 13.
Na5 {[%clk 0:02:43.5]} 13... Nd5 {[%clk 0:02:45.1]} 14. Bh2 {[%clk 0:02:40.3]}
14... N7b6 {[%clk 0:02:40.8]} 15. Nd2 {[%clk 0:02:33.1]} 15... Be6 {[%clk
0:02:26.5]} 16. Bf3 {[%clk 0:02:27.9]} 16... Rc8 {[%clk 0:02:24.6]} 17. Nab3
{[%clk 0:02:19.9]} 17... Nc4 {[%clk 0:02:16.6]} 18. Rxa6 {[%clk 0:02:11.4]}
18... Nxb2 {[%clk 0:02:16]} 19. Qa1 {[%clk 0:02:07.6]} 19... Nc4 {[%clk
0:02:15]} 20. Rc1 {[%clk 0:01:53.1]} 20... Ndb6 {[%clk 0:02:08.6]} 21. e4 {[%clk
0:01:40.3]} 21... Nxd2 {[%clk 0:02:05.2]} 22. Nxd2 {[%clk 0:01:39.2]} 22... Nc4
{[%clk 0:02:04.6]} 23. Nxc4 {[%clk 0:01:30.6]} 23... Bxc4 {[%clk 0:02:03.9]} 24.
Ra7 {[%clk 0:01:22.7]} 24... e5 {[%clk 0:01:36.6]} 25. d5 {[%clk 0:01:14.6]}
25... Re7 {[%clk 0:01:35.5]} 26. Bg3 {[%clk 0:01:11.9]} 26... Rxa7 {[%clk
0:01:30.6]} 27. Qxa7 {[%clk 0:01:10.9]} 27... Ra8 {[%clk 0:01:29.2]} 28. Qe3
{[%clk 0:01:03.2]} 28... Kh7 {[%clk 0:01:26.3]} 29. Be2 {[%clk 0:00:55.4]} 29...
h5 {[%clk 0:01:23.9]} 30. Bxc4 {[%clk 0:00:54.1]} 30... bxc4 {[%clk 0:01:23.3]}
31. Qe2 {[%clk 0:00:53.1]} 31... Qc7 {[%clk 0:01:20.1]} 32. f3 {[%clk
0:00:52.4]} 32... Bh6 {[%clk 0:01:18.8]} 33. Rf1 {[%clk 0:00:40.8]} 33... Ra4
{[%clk 0:01:11.8]} 34. f4 {[%clk 0:00:38.3]} 34... Bg7 {[%clk 0:00:53]} 35. fxe5
{[%clk 0:00:37.2]} 35... dxe5 {[%clk 0:00:50.8]} 36. Qf2 {[%clk 0:00:29.5]}
36... f6 {[%clk 0:00:49.1]} 37. Qb2 {[%clk 0:00:24.4]} 37... Bf8 {[%clk
0:00:46.1]} 38. Rxf6 {[%clk 0:00:17.9]} 38... Bc5+ {[%clk 0:00:44.9]} 39. Bf2
{[%clk 0:00:17.6]} 39... Qe7 {[%clk 0:00:41.6]} 40. Re6 {[%clk 0:00:14.7]} 40...
Qf8 {[%clk 0:00:39.2]} 41. Bxc5 {[%clk 0:00:08.8]} 41... Qxc5+ {[%clk
0:00:37.7]} 42. Kh2 {[%clk 0:00:08.2]} 42... Qf2 {[%clk 0:00:36.6]} 43. Qxf2
{[%clk 0:00:07.5]} 43... Ra3 {[%clk 0:00:34.5]} 44. Qf6 {[%clk 0:00:06.8]} 44...
Rxc3 {[%clk 0:00:33.2]} 45. Qxg6+ {[%clk 0:00:06.8]} 1-0

[Event "Betsys MČR v online bleskovém šachu 2021"]
[Site "Chess.com"]
[Date "2021.04.17"]
[Round "2"]
[White "Mikkes33"]
[Black "sajmon8"]
[Result "1-0"]
[WhiteElo "1277"]
[BlackElo "1589"]
[TimeControl "180+1"]
[EndTime "9:17:39 PDT"]
[Termination "Uživatel Mikkes33 zvítězil po vzdání soupeře"]

1. e4 {[%clk 0:02:59.6]} 1... e6 {[%clk 0:02:59]} 2. d4 {[%clk 0:02:58.2]} 2...
d5 {[%clk 0:02:58.3]} 3. Nd2 {[%clk 0:02:58]} 3... Nf6 {[%clk 0:02:57.4]} 4.
exd5 {[%clk 0:02:52.9]} 4... exd5 {[%clk 0:02:53.2]} 5. Ngf3 {[%clk 0:02:52.9]}
5... Bd6 {[%clk 0:02:49.6]} 6. Bd3 {[%clk 0:02:49.2]} 6... O-O {[%clk
0:02:47.7]} 7. O-O {[%clk 0:02:48.6]} 7... c6 {[%clk 0:02:47.1]} 8. b3 {[%clk
0:02:47.6]} 8... Qc7 {[%clk 0:02:42]} 9. c4 {[%clk 0:02:43.8]} 9... Qd8 {[%clk
0:02:35.8]} 10. Bb2 {[%clk 0:02:41.1]} 10... Be6 {[%clk 0:02:29]} 11. c5 {[%clk
0:02:37.6]} 11... Bc7 {[%clk 0:02:24.9]} 12. b4 {[%clk 0:02:35.3]} 12... a5
{[%clk 0:02:22]} 13. a3 {[%clk 0:02:28.5]} 13... axb4 {[%clk 0:02:20.3]} 14.
axb4 {[%clk 0:02:27]} 14... Rxa1 {[%clk 0:02:19.8]} 15. Bxa1 {[%clk 0:02:25.3]}
15... b6 {[%clk 0:02:17.1]} 16. Qc2 {[%clk 0:02:19.7]} 16... bxc5 {[%clk
0:02:15]} 17. dxc5 {[%clk 0:02:15.6]} 17... Nbd7 {[%clk 0:01:59.5]} 18. b5
{[%clk 0:02:07]} 18... cxb5 {[%clk 0:01:43.3]} 19. Bxb5 {[%clk 0:02:05.8]} 19...
Qc8 {[%clk 0:01:40.5]} 20. Rc1 {[%clk 0:01:57.9]} 20... Bf4 {[%clk 0:01:33.1]}
21. g3 {[%clk 0:01:41.3]} 21... Bh6 {[%clk 0:01:23]} 22. c6 {[%clk 0:01:29.5]}
22... Nb6 {[%clk 0:01:09.4]} 23. Bxf6 {[%clk 0:01:21]} 23... gxf6 {[%clk
0:01:05.9]} 24. Bd3 {[%clk 0:01:09.4]} 24... Kh8 {[%clk 0:00:46.5]} 25. Nd4
{[%clk 0:00:54.6]} 25... Nc4 {[%clk 0:00:35.8]} 26. f4 {[%clk 0:00:40]} 26...
Nxd2 {[%clk 0:00:27.6]} 27. Qxd2 {[%clk 0:00:37.1]} 27... Rg8 {[%clk 0:00:25.8]}
28. Kh1 {[%clk 0:00:23.3]} 28... Rg4 {[%clk 0:00:16.1]} 29. Qe3 {[%clk
0:00:19.7]} 29... Qe8 {[%clk 0:00:13.3]} 30. Nxe6 {[%clk 0:00:17.1]} 30... fxe6
{[%clk 0:00:14.2]} 31. c7 {[%clk 0:00:16.5]} 31... Qc8 {[%clk 0:00:14.2]} 32.
Ba6 {[%clk 0:00:14.3]} 32... Qxa6 {[%clk 0:00:10.6]} 33. c8=Q+ {[%clk
0:00:13.3]} 33... Qxc8 {[%clk 0:00:09.5]} 34. Rxc8+ {[%clk 0:00:12.1]} 34... Kg7
{[%clk 0:00:09.8]} 35. Qxe6 {[%clk 0:00:11.5]} 1-0

[Event "Betsys MČR v online bleskovém šachu 2021"]
[Site "Chess.com"]
[Date "2021.04.17"]
[Round "2"]
[White "jankrelina07"]
[Black "koky_3"]
[Result "0-1"]
[WhiteElo "1468"]
[BlackElo "2048"]
[TimeControl "180+1"]
[EndTime "9:17:41 PDT"]
[Termination "Uživatel koky_3 zvítězil na čas"]

1. d4 {[%clk 0:03:00.9]} 1... d5 {[%clk 0:02:55.1]} 2. Bf4 {[%clk 0:02:57.1]}
2... Nc6 {[%clk 0:02:52.7]} 3. e3 {[%clk 0:02:51.1]} 3... f6 {[%clk 0:02:50.6]}
4. Nf3 {[%clk 0:02:48.4]} 4... Bg4 {[%clk 0:02:48.7]} 5. Be2 {[%clk 0:02:45.2]}
5... Qd7 {[%clk 0:02:47.9]} 6. c3 {[%clk 0:02:44.2]} 6... O-O-O {[%clk
0:02:46.7]} 7. h3 {[%clk 0:02:43.3]} 7... Bh5 {[%clk 0:02:40.5]} 8. Nbd2 {[%clk
0:02:39.7]} 8... g5 {[%clk 0:02:39.6]} 9. Bg3 {[%clk 0:02:34.3]} 9... Bg6 {[%clk
0:02:36.9]} 10. Nb3 {[%clk 0:02:31.5]} 10... e6 {[%clk 0:02:35.5]} 11. Bd3
{[%clk 0:02:25.9]} 11... Bd6 {[%clk 0:02:18.6]} 12. Bxd6 {[%clk 0:02:20]} 12...
cxd6 {[%clk 0:02:17.7]} 13. a4 {[%clk 0:02:09.4]} 13... Kb8 {[%clk 0:02:17.2]}
14. a5 {[%clk 0:02:02.6]} 14... Nge7 {[%clk 0:02:15.6]} 15. Bc2 {[%clk
0:02:01.4]} 15... h5 {[%clk 0:02:13]} 16. Nbd2 {[%clk 0:02:00.6]} 16... g4
{[%clk 0:02:09.7]} 17. Nh4 {[%clk 0:01:52.8]} 17... Bf7 {[%clk 0:02:02.5]} 18.
b4 {[%clk 0:01:50.1]} 18... a6 {[%clk 0:01:53.1]} 19. Bd3 {[%clk 0:01:41.6]}
19... Na7 {[%clk 0:01:52.3]} 20. Qc2 {[%clk 0:01:32]} 20... Rc8 {[%clk
0:01:51.4]} 21. Rc1 {[%clk 0:01:27.1]} 21... e5 {[%clk 0:01:40.2]} 22. dxe5
{[%clk 0:01:10.8]} 22... fxe5 {[%clk 0:01:33.9]} 23. Qb1 {[%clk 0:00:58.2]}
23... d4 {[%clk 0:01:23]} 24. Nf5 {[%clk 0:00:53.2]} 24... dxe3 {[%clk 0:01:19]}
25. fxe3 {[%clk 0:00:50]} 25... d5 {[%clk 0:01:14.3]} 26. Nxe7 {[%clk
0:00:47.6]} 26... Qxe7 {[%clk 0:01:11.7]} 27. Be2 {[%clk 0:00:40.3]} 27... Qh4+
{[%clk 0:01:08.2]} 28. Kd1 {[%clk 0:00:36.7]} 28... d4 {[%clk 0:01:02.3]} 29.
exd4 {[%clk 0:00:30.6]} 29... exd4 {[%clk 0:01:01.3]} 30. c4 {[%clk 0:00:26.3]}
30... Rce8 {[%clk 0:00:57.9]} 31. Qf5 {[%clk 0:00:23.7]} 31... Rhf8 {[%clk
0:00:54.3]} 32. Qf4+ {[%clk 0:00:20.3]} 32... Ka8 {[%clk 0:00:53.1]} 33. Qxd4
{[%clk 0:00:19.6]} 33... Nc6 {[%clk 0:00:43.7]} 34. Qc3 {[%clk 0:00:18.3]} 34...
Qf2 {[%clk 0:00:39.7]} 35. Re1 {[%clk 0:00:17.7]} 35... Bg6 {[%clk 0:00:29.7]}
36. b5 {[%clk 0:00:16.7]} 36... Nd4 {[%clk 0:00:25.8]} 37. bxa6 {[%clk
0:00:10.3]} 37... Rxe2 {[%clk 0:00:21.7]} 38. Nb3 {[%clk 0:00:04.9]} 38... Rxe1+
{[%clk 0:00:20.2]} 39. Qxe1 {[%clk 0:00:01.9]} 39... Bc2+ {[%clk 0:00:19]} 0-1

[Event "Betsys MČR v online bleskovém šachu 2021"]
[Site "Chess.com"]
[Date "2021.04.17"]
[Round "2"]
[White "HCMotorCB"]
[Black "matykov"]
[Result "1-0"]
[WhiteElo "2369"]
[BlackElo "1999"]
[TimeControl "180+1"]
[EndTime "9:17:42 PDT"]
[Termination "Uživatel HCMotorCB zvítězil po vzdání soupeře"]

1. e4 {[%clk 0:03:00.9]} 1... e6 {[%clk 0:02:59.9]} 2. d4 {[%clk 0:02:59.2]}
2... d5 {[%clk 0:03:00.2]} 3. e5 {[%clk 0:02:59.6]} 3... c5 {[%clk 0:02:59.3]}
4. c3 {[%clk 0:02:59.1]} 4... Qb6 {[%clk 0:02:59.5]} 5. a3 {[%clk 0:02:58.5]}
5... Bd7 {[%clk 0:02:59.7]} 6. b4 {[%clk 0:02:57.8]} 6... cxd4 {[%clk
0:02:57.6]} 7. Qxd4 {[%clk 0:02:52.7]} 7... Qxd4 {[%clk 0:02:48.3]} 8. cxd4
{[%clk 0:02:53.6]} 8... a6 {[%clk 0:02:38.6]} 9. f4 {[%clk 0:02:51.2]} 9... Bb5
{[%clk 0:02:37]} 10. Nf3 {[%clk 0:02:47]} 10... Bxf1 {[%clk 0:02:35.2]} 11. Kxf1
{[%clk 0:02:45.4]} 11... Nc6 {[%clk 0:02:33.6]} 12. Ke2 {[%clk 0:02:37.3]} 12...
Nge7 {[%clk 0:02:33.6]} 13. Bb2 {[%clk 0:02:36.4]} 13... Ng6 {[%clk 0:02:33.1]}
14. g3 {[%clk 0:02:35.5]} 14... Be7 {[%clk 0:02:32.3]} 15. h4 {[%clk 0:02:34.6]}
15... h5 {[%clk 0:02:18.8]} 16. Nbd2 {[%clk 0:02:34.6]} 16... Bd8 {[%clk
0:02:18.2]} 17. Rhc1 {[%clk 0:02:32.3]} 17... Bb6 {[%clk 0:02:17.1]} 18. Nb3
{[%clk 0:02:31.6]} 18... Nge7 {[%clk 0:02:12.6]} 19. Rc2 {[%clk 0:02:14.7]}
19... Nf5 {[%clk 0:02:11.8]} 20. Kf2 {[%clk 0:02:14.7]} 20... g6 {[%clk
0:02:07.5]} 21. Rac1 {[%clk 0:02:12.5]} 21... Kd7 {[%clk 0:02:06.7]} 22. Nc5+
{[%clk 0:02:11.3]} 22... Bxc5 {[%clk 0:02:07.1]} 23. dxc5 {[%clk 0:02:10.1]}
23... Na7 {[%clk 0:02:00.4]} 24. a4 {[%clk 0:02:08.1]} 24... Rac8 {[%clk
0:01:59]} 25. Ba3 {[%clk 0:02:07.6]} 25... Rc7 {[%clk 0:01:55]} 26. Rd2 {[%clk
0:01:58.1]} 26... Rhc8 {[%clk 0:01:53.8]} 27. Nd4 {[%clk 0:01:56.8]} 27... Nc6
{[%clk 0:01:52.4]} 28. Nxf5 {[%clk 0:01:42.6]} 28... gxf5 {[%clk 0:01:52.2]} 29.
Rc3 {[%clk 0:01:30.6]} 29... Rg8 {[%clk 0:01:31.7]} 30. Rdd3 {[%clk 0:01:24.3]}
30... Rcc8 {[%clk 0:01:19.7]} 31. b5 {[%clk 0:01:20.2]} 31... axb5 {[%clk
0:01:19.5]} 32. axb5 {[%clk 0:01:20.5]} 32... Na7 {[%clk 0:00:57.9]} 33. Rb3
{[%clk 0:01:19.4]} 33... Ra8 {[%clk 0:00:56.8]} 34. Rdc3 {[%clk 0:01:13.2]}
34... Rgc8 {[%clk 0:00:56.7]} 35. Ke3 {[%clk 0:01:11.4]} 35... Rc7 {[%clk
0:00:53.4]} 36. b6 {[%clk 0:01:08.8]} 36... Rc6 {[%clk 0:00:51.1]} 37. bxa7
{[%clk 0:01:07.9]} 37... Rxa7 {[%clk 0:00:51.9]} 38. Bb4 {[%clk 0:01:06.4]}
38... Rca6 {[%clk 0:00:51.7]} 39. Ra3 {[%clk 0:01:05.2]} 39... Rxa3 {[%clk
0:00:48.6]} 40. Rxa3 {[%clk 0:01:04.7]} 40... Rxa3+ {[%clk 0:00:48.7]} 41. Bxa3
{[%clk 0:01:05.6]} 41... Kc6 {[%clk 0:00:48.8]} 42. Kd4 {[%clk 0:01:05.4]} 42...
Kb5 {[%clk 0:00:47.8]} 43. Bc1 {[%clk 0:01:05]} 43... Kb4 {[%clk 0:00:47.1]} 44.
Bd2+ {[%clk 0:01:04.7]} 44... Kb3 {[%clk 0:00:46.9]} 45. Ba5 {[%clk 0:01:04.7]}
45... Kc2 {[%clk 0:00:40.5]} 46. Bd8 {[%clk 0:01:02]} 46... Kb3 {[%clk
0:00:31.9]} 47. Be7 {[%clk 0:00:50.8]} 47... Kc2 {[%clk 0:00:30.6]} 48. Bd6
{[%clk 0:00:46]} 48... Kb3 {[%clk 0:00:24]} 49. Bc7 {[%clk 0:00:45.8]} 49... Kc2
{[%clk 0:00:23.9]} 50. Ba5 {[%clk 0:00:45.7]} 50... Kb3 {[%clk 0:00:23.7]} 51.
c6 {[%clk 0:00:45]} 51... bxc6 {[%clk 0:00:23.6]} 52. Kc5 {[%clk 0:00:45.4]}
52... Kc2 {[%clk 0:00:23.2]} 53. Kxc6 {[%clk 0:00:44.7]} 53... d4 {[%clk
0:00:23.7]} 54. Kd7 {[%clk 0:00:42.8]} 54... d3 {[%clk 0:00:24.2]} 55. Ke7
{[%clk 0:00:42.7]} 55... d2 {[%clk 0:00:24.9]} 56. Bxd2 {[%clk 0:00:42.6]} 56...
Kxd2 {[%clk 0:00:25.8]} 57. Kxf7 {[%clk 0:00:42.9]} 57... Ke3 {[%clk 0:00:26.7]}
58. Kxe6 {[%clk 0:00:43.3]} 58... Kf3 {[%clk 0:00:27]} 59. Kxf5 {[%clk
0:00:43.5]} 59... Kxg3 {[%clk 0:00:27.2]} 60. Kg5 {[%clk 0:00:43.8]} 1-0